fUSD/lending_fUSD_20251011
["ID","MTS","AMOUNT","RATE_DAILY","PERIOD"]
[390893707,1760201327687,-50000.0,0.00030084,38]
[390893708,1760201327712,-50000.0,0.00030084,39]
[390893709,1760201327879,-622.58702481,0.00030084,60]
[390893710,1760201327904,-31982.5625,0.00030084,85]
[390893711,1760201327928,-500.0,0.00030084,120]
[390893712,1760201327956,-500.0,0.00030084,120]
[390893713,1760201327981,-500.0,0.00030084,120]
[390893714,1760201328006,-500.0,0.00030084,120]
[390893715,1760201328031,-500.0,0.00030084,120]
[390893716,1760201328055,-500.0,0.00030084,120]
[390893717,1760201328079,-500.0,0.00030084,120]
[390893718,1760201328103,-500.0,0.00030084,120]
[390893719,1760201328128,-500.0,0.00030084,120]
[390893720,1760201328153,-500.0,0.00030084,120]
[390893721,1760201328178,-500.0,0.00030084,120]
[390893722,1760201328205,-500.0,0.00030084,120]
[390893723,1760201328229,-500.0,0.00030084,120]
[390893724,1760201328254,-500.0,0.00030084,120]
[390893725,1760201328282,-500.0,0.00030084,120]
[390893726,1760201328306,-500.0,0.00030084,120]
[390893727,1760201328331,-500.0,0.00030084,120]
[390893728,1760201328355,-245.48,0.00030084,120]
[390893729,1760201328379,-367.76775706,0.00030084,60]
[390893730,1760201328402,-357.43834208,0.00030084,120]
[390893731,1760201328426,-456.587002,0.00030084,91]
[390893732,1760201328449,-467.73063445,0.00030084,120]
[390893733,1760201328474,-677.14946565,0.00030084,120]
[390893734,1760201328498,-181.59842653,0.00030084,120]
[390893735,1760201328522,-310.599949,0.00030084,30]
[390893736,1760201328546,-243.89584619,0.00030084,30]
[390893737,1760201328571,-2062.22205478,0.00030084,120]
[390893738,1760201328595,-207.03229654,0.00030084,30]
[390893739,1760201328619,-903.181787,0.00030084,120]
[390893740,1760201328643,-859.73401859,0.00030084,90]
[390893741,1760201328671,-433.81875422,0.00030084,120]
[390893742,1760201328696,-519.40472592,0.00030084,30]
[390893743,1760201328722,-332.88054104,0.00030084,60]
[390893744,1760201328747,-185.25648095,0.00030084,120]
[390893745,1760201328771,-605.16546023,0.00030084,30]
[390893746,1760201328795,-2024.08246339,0.00030084,120]
[390893747,1760201328819,-516.80745898,0.00030084,120]
[390893748,1760201328843,-304.02121588,0.00030084,60]
[390893749,1760201328867,-193.78441064,0.00030084,30]
[390893750,1760201328891,-267.11395329,0.00030084,120]
[390893751,1760201328915,-272.1142528,0.00030084,120]
[390893752,1760201328940,-268.4560314,0.00030084,120]
[390893753,1760201328965,-1591.04464267,0.00030084,120]
[390893754,1760201328988,-477.38317738,0.00030084,120]
[390893755,1760201329012,-1763.00927136,0.00030084,120]
[390893756,1760201329036,-496.81840311,0.00030084,120]
[390893757,1760201329060,-1323.1752782,0.00030084,120]
[390893758,1760201329091,-2192.59064729,0.00030084,31]
[390893759,1760201329123,-185.43678148,0.00030084,120]
[390893760,1760201329147,-915.72221695,0.00030084,120]
[390893761,1760201329535,-561.98145564,0.00030084,120]
[390893762,1760201329560,-1895.99628983,0.00030084,120]
[390893763,1760201329584,-1464.82733813,0.00030084,120]
[390893764,1760201329609,-397.21497629,0.00030084,60]
[390893765,1760201329633,-1355.83842763,0.00030084,120]
[390893766,1760201329659,-2148.1542612,0.00030084,120]
[390893767,1760201329683,-1555.02870219,0.00030084,120]
[390893768,1760201329709,-892.85078203,0.00030084,120]
[390893769,1760201329736,-1258.84121531,0.00030084,120]
[390893770,1760201329761,-1254.73835207,0.00030084,120]
[390893771,1760201329784,-546.39670045,0.00030084,120]
[390893772,1760201329807,-1995.68173324,0.00030084,30]
[390893773,1760201329832,-756.0,0.00030084,120]
[390893774,1760201329856,-1370.01367832,0.00030084,120]
[390893775,1760201329879,-1163.98370452,0.00030084,120]
[390893776,1760201329902,-506.02340334,0.00030084,120]
[390893777,1760201329931,-558.65694713,0.00030084,120]
[390893778,1760201329956,-701.78154531,0.00030084,120]
[390893779,1760201329981,-1702.77712327,0.00030084,120]
[390893780,1760201330006,-1642.54251576,0.00030084,120]
[390893781,1760201330030,-246.03134937,0.00030084,120]
[390893782,1760201330055,-1288.84771365,0.00030084,120]
[390893783,1760201330080,-796.73909166,0.00030084,120]
[390893784,1760201330108,-1440.21443097,0.00030084,120]
[390893785,1760201330133,-361.6302797,0.00030084,30]
[390893786,1760201330159,-507.67483236,0.00030084,30]
[390893787,1760201330184,-1851.33634406,0.00030084,120]
[390893788,1760201330209,-362.90886067,0.00030084,120]
[390893789,1760201330233,-307.31544707,0.00030084,120]
[390893790,1760201330258,-568.89276092,0.00030084,30]
[390893791,1760201330282,-500.0,0.00030084,120]
[390893792,1760201330306,-151.14125821,0.00030084,120]
[390893793,1760201330330,-183.59820217,0.00030084,120]
[390893794,1760201330354,-330.50008906,0.00030084,120]
[390893795,1760201330377,-400.0,0.00030084,70]
[390893796,1760201330415,-403.0,0.00030084,30]
[390893797,1760201330444,-500.0,0.00030084,120]
[390893798,1760201330471,-500.0,0.00030084,120]
[390893799,1760201330499,-500.0,0.00030084,120]
[390893800,1760201330528,-500.0,0.00030084,120]
[390893801,1760201330555,-500.0,0.00030084,120]
[390893802,1760201330583,-500.0,0.00030084,120]
[390893803,1760201330609,-485.44,0.00030084,120]
[390893804,1760201330635,-500.0,0.00030084,120]
[390893805,1760201330662,-500.0,0.00030084,120]
[390893806,1760201330689,-500.0,0.00030084,120]
[390893807,1760201330715,-500.0,0.00030084,120]
[390893808,1760201330743,-500.0,0.00030084,120]
[390893809,1760201330770,-500.0,0.00030084,120]
[390893810,1760201330795,-501.64,0.00030084,120]
[390893811,1760201330821,-430.549999,0.00030084,120]
[390893812,1760201330852,-713762.0,0.00030084,120]
[390893813,1760201330879,-1407.0,0.00030084,120]
[390893814,1760201330906,-602.33,0.00030084,120]
[390893815,1760201330934,-602.33,0.00030084,120]
[390893816,1760201330962,-602.33,0.00030084,120]
[390893817,1760201330990,-602.33,0.00030084,120]
[390893818,1760201331018,-602.33,0.00030084,120]
[390893819,1760201331047,-602.33,0.00030084,120]
[390893820,1760201331076,-602.33,0.00030084,120]
[390893821,1760201331104,-602.33,0.00030084,120]
[390893822,1760201331133,-602.33,0.00030084,120]
[390893823,1760201331164,-602.33,0.00030084,120]
[390893824,1760201331192,-602.33,0.00030084,120]
[390893825,1760201331220,-602.33,0.00030084,120]
[390893826,1760201331249,-602.33,0.00030084,120]
[390893827,1760201331276,-602.33,0.00030084,120]
[390893828,1760201331310,-602.33,0.00030084,120]
[390893829,1760201331337,-602.33,0.00030084,120]
[390893830,1760201331367,-602.33,0.00030084,120]
[390893831,1760201331397,-602.33,0.00030084,120]
[390893832,1760201331654,-602.33,0.00030084,120]
[390893833,1760201331682,-602.33,0.00030084,120]
[390893834,1760201331707,-602.33,0.00030084,120]
[390893835,1760201331734,-602.33,0.00030084,120]
[390893836,1760201331760,-602.33,0.00030084,120]
[390893837,1760201331785,-602.33,0.00030084,120]
[390893838,1760201331809,-229709.30431724,0.00030084,120]
[390893839,1760201331834,-5335.14214896,0.00030084,120]
[390893840,1760201331858,-2100.0,0.00030084,120]
[390893841,1760201331882,-1800.0,0.00030084,120]
[390893842,1760201331907,-2850.0,0.00030084,120]
[390893843,1760201331930,-210.95,0.00030084,30]
[390893844,1760201331956,-1749.93,0.00030084,120]
[390893845,1760201331982,-1749.93,0.00030084,120]
[390893846,1760201332009,-1749.93,0.00030084,120]
[390893847,1760201332037,-1749.93,0.00030084,120]
[390893848,1760201332067,-1749.93,0.00030084,120]
[390893849,1760201332096,-1749.93,0.00030084,120]
[390893850,1760201332122,-1749.93,0.00030084,120]
[390893851,1760201332152,-1749.93,0.00030084,120]
[390893852,1760201332178,-1749.93,0.00030084,120]
[390893853,1760201332204,-1749.93,0.00030084,120]
[390893854,1760201332234,-1749.93,0.00030084,120]
[390893855,1760201332260,-1749.93,0.00030084,120]
[390893856,1760201332285,-1749.93,0.00030084,120]
[390893857,1760201332310,-1749.93,0.00030084,120]
[390893858,1760201332335,-1749.93,0.00030084,120]
[390893859,1760201332361,-1749.93,0.00030084,120]
[390893860,1760201332386,-1749.93,0.00030084,120]
[390893861,1760201332411,-1749.93,0.00030084,120]
[390893862,1760201332440,-1749.93,0.00030084,120]
[390893863,1760201332466,-1749.93,0.00030084,120]
[390893864,1760201332491,-500.0,0.00030084,120]
[390893865,1760201332516,-500.0,0.00030084,120]
[390893866,1760201332541,-500.0,0.00030084,120]
[390893867,1760201332565,-500.0,0.00030084,120]
[390893868,1760201332591,-500.0,0.00030084,120]
[390893869,1760201332616,-500.0,0.00030084,120]
[390893870,1760201332640,-500.0,0.00030084,120]
[390893871,1760201332669,-500.0,0.00030084,120]
[390893872,1760201332694,-500.0,0.00030084,120]
[390893873,1760201332719,-500.0,0.00030084,120]
[390893874,1760201332747,-500.0,0.00030084,120]
[390893875,1760201332772,-500.0,0.00030084,120]
[390893876,1760201332798,-500.0,0.00030084,120]
[390893877,1760201332823,-636.17,0.00030084,120]
[390893878,1760201332848,-500000.0,0.00030084,30]
[390893879,1760201332873,-1030.32940649,0.00030084,60]
[390893880,1760201332898,-157.0,0.00030084,120]
[390893881,1760201332922,-858.07895105,0.00030084,30]
[390893882,1760201332947,-5000.0,0.00030084,31]
[390893883,1760201332986,-143811.53957155,0.00030084,120]
[390893884,1760201333012,-214.3,0.00030084,30]
[390893885,1760201333038,-500.0,0.00030084,120]
[390893886,1760201333064,-500.0,0.00030084,120]
[390893887,1760201333090,-500.0,0.00030084,120]
[390893888,1760201333115,-500.0,0.00030084,120]
[390893889,1760201333142,-500.0,0.00030084,120]
[390893890,1760201333168,-500.0,0.00030084,120]
[390893891,1760201333194,-500.0,0.00030084,120]
[390893892,1760201333220,-500.0,0.00030084,120]
[390893893,1760201333246,-500.0,0.00030084,120]
[390893894,1760201333272,-500.0,0.00030084,120]
[390893895,1760201333297,-261.46,0.00030084,120]
[390893896,1760201333323,-500.0,0.00030084,120]
[390893897,1760201333348,-500.0,0.00030084,120]
[390893898,1760201333374,-500.0,0.00030084,120]
[390893899,1760201333400,-500.0,0.00030084,120]
[390893900,1760201333432,-500.0,0.00030084,120]
[390893901,1760201333460,-500.0,0.00030084,120]
[390893902,1760201333488,-500.0,0.00030084,120]
[390893903,1760201333517,-556.48188934,0.00030084,120]
[390893904,1760201333545,-663.00561861,0.00030084,120]
[390893905,1760201333572,-500.0,0.00030084,120]
[390893906,1760201333601,-500.0,0.00030084,120]
[390893907,1760201333629,-500.0,0.00030084,120]
[390893908,1760201333660,-500.0,0.00030084,120]
[390893909,1760201333687,-500.0,0.00030084,120]
[390893910,1760201333714,-500.0,0.00030084,120]
[390893911,1760201333743,-500.0,0.00030084,120]
[390893912,1760201333770,-500.0,0.00030084,120]
[390893913,1760201333798,-384.55,0.00030084,120]
[390893914,1760201333826,-500.0,0.00030084,120]
[390893915,1760201333852,-500.0,0.00030084,120]
[390893916,1760201333879,-500.0,0.00030084,120]
[390893917,1760201333909,-500.0,0.00030084,120]
[390893918,1760201333936,-500.0,0.00030084,120]
[390893919,1760201333963,-500.0,0.00030084,120]
[390893920,1760201333990,-500.0,0.00030084,120]
[390893921,1760201334016,-500.0,0.00030084,120]
[390893922,1760201334044,-384.55,0.00030084,120]
[390893923,1760201334071,-2885.89236,0.00030084,60]
[390893924,1760201334097,-2885.89236,0.00030084,60]
[390893925,1760201334123,-2885.89236,0.00030084,60]
[390893926,1760201334153,-2885.89236,0.00030084,60]
[390893927,1760201334181,-2885.89236,0.00030084,60]
[390893928,1760201334208,-500.0,0.00030084,120]
[390893929,1760201334236,-500.0,0.00030084,120]
[390893930,1760201334263,-500.0,0.00030084,120]
[390893931,1760201334289,-500.0,0.00030084,120]
[390893932,1760201334317,-500.0,0.00030084,120]
[390893933,1760201334344,-500.0,0.00030084,120]
[390893934,1760201334376,-500.0,0.00030084,120]
[390893935,1760201334403,-389.19,0.00030084,120]
[390893936,1760201334431,-500.0,0.00030084,120]
[390893937,1760201334728,-500.0,0.00030084,120]
[390893938,1760201334755,-500.0,0.00030084,120]
[390893939,1760201334780,-500.0,0.00030084,120]
[390893940,1760201334805,-500.0,0.00030084,120]
[390893941,1760201334832,-500.0,0.00030084,120]
[390893942,1760201334857,-500.0,0.00030084,120]
[390893943,1760201334882,-500.0,0.00030084,120]
[390893944,1760201334908,-500.0,0.00030084,120]
[390893945,1760201334936,-500.0,0.00030084,120]
[390893946,1760201334966,-500.0,0.00030084,120]
[390893947,1760201334993,-500.0,0.00030084,120]
[390893948,1760201335019,-500.0,0.00030084,120]
[390893949,1760201335045,-500.0,0.00030084,120]
[390893950,1760201335073,-500.0,0.00030084,120]
[390893951,1760201335099,-278.38,0.00030084,120]
[390893952,1760201335125,-19374.32,0.00030084,90]
[390893953,1760201335153,-2000.0,0.00030084,120]
[390893954,1760201335178,-8113.85359324,0.00030084,30]
[390893955,1760201335203,-806.26319364,0.00030084,30]
[390893956,1760201335228,-16123.26046372,0.00030084,120]
[390893957,1760201335254,-252.0,0.00030084,120]
[390893958,1760201335280,-10948.29290301,0.00030084,30]
[390893959,1760201335306,-427077.52012798,0.00030084,30]
[390893960,1760201335330,-17840.58338649,0.00030084,30]
[390893961,1760201335356,-244.93,0.00030084,120]
[390893962,1760201335382,-140701.28290374,0.00030084,30]
[390893963,1760201335409,-20278.28785205,0.00030084,60]
[390893964,1760201335435,-7065.39272342,0.00030084,120]
[390893965,1760201335460,-109280.68507789,0.00030084,120]
[390893966,1760201335486,-599127.15884672,0.00030084,30]
[390893967,1760201343065,-4000000.0,0.00030084,30]
[390893968,1760201349548,-10000000.0,0.00030084,30]
[390893969,1760201364748,-10000000.0,0.00030084,30]
[390893970,1760201369162,-10000000.0,0.00030084,30]
[390893973,1760201421743,-10000100.0,0.00030084,30]
[390893975,1760201426822,-10000101.0,0.00030084,30]
[390893992,1760201431910,-1200.0,0.00013894,2]
[390893993,1760201431922,-14200.47,0.00014302,2]
[390893994,1760201431931,-200.0,0.000144,5]
[390893995,1760201431940,-500.0,0.000145,5]
[390893996,1760201431952,-800.0,0.000146,5]
[390893997,1760201431962,-1100.0,0.000147,5]
[390893998,1760201431971,-1400.0,0.000148,5]
[390893999,1760201431981,-2127.026,0.00014879,2]
[390894000,1760201431991,-216.00692283,0.00014879,2]
[390894001,1760201432001,-168.43195083,0.00014879,2]
[390894002,1760201432010,-462.19831154,0.00014879,2]
[390894003,1760201432020,-204.24108851,0.00014879,2]
[390894004,1760201432030,-176.078,0.00014879,2]
[390894005,1760201432039,-3325.51071737,0.0001488,2]
[390894006,1760201432073,-25209.57318347,0.0001488,2]
[390894007,1760201432082,-1271.1861,0.000149,2]
[390894008,1760201432091,-11613.0708,0.000149,2]
[390894009,1760201432101,-354.0231,0.000149,2]
[390894010,1760201432111,-695.85681364,0.000149,2]
[390894011,1760201432124,-194.25305712,0.000149,2]
[390894012,1760201432134,-200.0,0.000149,5]
[390894013,1760201432144,-1000.0,0.000149,2]
[390894014,1760201432154,-5750.87187878,0.000149,2]
[390894015,1760201432164,-325.74005668,0.000149,2]
[390894016,1760201432173,-151.52788467,0.000149,2]
[390894018,1760201432183,-18718.0,0.00014959,2]
[390894019,1760201432192,-19595.64590505,0.00014973,2]
[390894022,1760201432204,-3889.96409495,0.00014973,2]
[390894024,1760201432214,-500.0,0.00014973,2]
[390894026,1760201432223,-211.77680813,0.00014973,2]
[390894028,1760201432234,-1898.7565319,0.00014977,2]
[390894029,1760201432244,-500.0,0.00014999,15]
[390894031,1760201432254,-155.0,0.00014999,2]
[390894034,1760201432265,-150.0,0.00014999,2]
[390894035,1760201432275,-49783.76707758,0.00015,2]
[390894038,1760201432289,-19669.55300247,0.00015,2]
[390894040,1760201432300,-17123.86622076,0.00015,2]
[390894046,1760201432347,-281.9940252,0.00013894,2]
[390894052,1760201433548,-5000101.0,0.00030084,30]
[390894060,1760201437790,-218.0059748,0.00013894,2]
[390894061,1760201437799,-500.0,0.00013894,2]
[390894062,1760201437808,-500.0,0.00013894,2]
[390894063,1760201437817,-500.0,0.00013894,2]
[390894064,1760201437827,-500.0,0.00013894,2]
[390894065,1760201437837,-500.0,0.00013894,2]
[390894066,1760201437847,-500.0,0.00013894,2]
[390894067,1760201437856,-374.09264211,0.00013894,2]
[390894068,1760201437865,-59.54938309,0.00013894,2]
[390894069,1760201437877,-440.45061691,0.00013894,2]
[390894070,1760201437887,-2502.89760373,0.00015,2]
[390894071,1760201437901,-563.94852852,0.00015,2]
[390894072,1760201437915,-2511.93708019,0.00015,2]
[390894073,1760201437926,-65688.23679593,0.00015,2]
[390894074,1760201437937,-31963.31029404,0.00015,2]
[390894075,1760201437949,-317.98127747,0.00015,2]
[390894076,1760201437963,-394.14575585,0.00015,2]
[390894077,1760201437974,-1044.54922103,0.00015,2]
[390894078,1760201437985,-4840.0646908,0.00015,2]
[390894092,1760201439792,-406.78185936,0.00015,2]
[390894098,1760201439906,-455120.21532217,0.00015,2]
[390894099,1760201439917,-32188.80003588,0.00015,2]
[390894100,1760201439958,-11483.86116475,0.00015,2]
[390894101,1760201439969,-4018.70472461,0.00015,2]
[390894107,1760201442797,-11179.2354,0.00015,2]
[390894108,1760201443291,-9529.1091491,0.00015,2]
[390894116,1760201445935,-646.0500007,0.00015,2]
[390894117,1760201445947,-1907.55379794,0.00015,2]
[390894118,1760201445977,-592.1533885,0.00015,2]
[390894119,1760201446025,-43022.16280762,0.00015,2]
[390894120,1760201446074,-386.51384323,0.00015,2]
[390894121,1760201449181,-5050.927552,0.00015,2]
[390894133,1760201627819,-300.0,0.00013699,2]
[390894134,1760201629697,-211.45585335,0.00013699,2]
[390894135,1760201633662,-160.0,0.00013699,2]
[390894318,1760202439593,6150.0,0.00027397,120]
[390894379,1760202631960,-500.0,0.00013599,2]
[390894380,1760202631970,-114.37390575,0.00013649,2]
[390894381,1760202631982,-240.76087278,0.00013649,2]
[390894382,1760202631993,-35.85414665,0.00013699,2]
[390894383,1760202632004,-300.0,0.00013706,2]
[390894384,1760202632013,-300.0,0.00013706,2]
[390894385,1760202632023,-303.6912691,0.00013713,2]
[390894386,1760202632033,-399.79897179,0.00013812,2]
[390894387,1760202632042,-135.49473968,0.0001405,2]
[390894388,1760202632054,-1568.97526032,0.0001405,2]
[390894389,1760202632064,-175.53,0.00014104,2]
[390894390,1760202632075,-250.0,0.00014169,2]
[390894391,1760202632086,-606.56,0.00014191,2]
[390894392,1760202632096,-1200.0,0.00014302,2]
[390894393,1760202632106,-1200.0,0.00014302,2]
[390894394,1760202632117,-300.0,0.00014303,2]
[390894395,1760202632126,-300.0,0.00014303,2]
[390894396,1760202632136,-5077.03781656,0.00014304,2]
[390894397,1760202632150,-2000.0,0.00014304,2]
[390894398,1760202632182,-9055.568093,0.00014304,2]
[390894444,1760202638154,-1725.28409044,0.00014304,2]
[390894445,1760202638163,-889.25951325,0.00014617,2]
[390894446,1760202638173,-1701.621,0.00014899,2]
[390894447,1760202638182,-150.0,0.00014899,2]
[390894448,1760202638191,-171.76978453,0.000149,2]
[390894449,1760202638201,-497.94498382,0.000149,2]
[390894450,1760202638211,-444.3,0.000149,3]
[390894451,1760202638220,-504.4644364,0.000149,2]
[390894452,1760202638231,-556.68545092,0.000149,2]
[390894453,1760202638240,-166.50262038,0.000149,2]
[390894454,1760202638250,-1144.81252606,0.000149,2]
[390894455,1760202638259,-217.1600378,0.000149,2]
[390894456,1760202638269,-1151.96431517,0.000149,2]
[390894459,1760202639937,-2267.8786005,0.000149,2]
[390894460,1760202639947,-1694.55703526,0.00014958,2]
[390894461,1760202639957,-150.0,0.00014958,2]
[390894462,1760202639967,-300.0,0.00014958,2]
[390894463,1760202639977,-250.0,0.00014958,2]
[390894464,1760202639987,-280.30746584,0.00014958,4]
[390894465,1760202639997,-2500.0,0.00014958,2]
[390894466,1760202640007,-1578.7575028,0.00014958,2]
[390894467,1760202640017,-500.69197338,0.00014973,2]
[390894468,1760202640026,-500.0,0.00014973,2]
[390894469,1760202640036,-500.0,0.00014973,2]
[390894470,1760202640045,-500.0,0.00014973,2]
[390894471,1760202640056,-500.0,0.00014973,2]
[390894472,1760202640066,-500.0,0.00014973,2]
[390894473,1760202640076,-171.62,0.0001499,2]
[390894474,1760202640087,-171.62,0.0001499,2]
[390894475,1760202640096,-171.62,0.0001499,2]
[390894476,1760202640105,-171.62,0.0001499,2]
[390894477,1760202640115,-200.0,0.00014991,2]
[390894478,1760202640126,-200.0,0.00014991,2]
[390894479,1760202640135,-154.99182914,0.00014991,2]
[390894480,1760202640144,-151.0,0.00014991,2]
[390894481,1760202640156,-151.0,0.00014991,2]
[390894482,1760202640166,-151.0,0.00014991,2]
[390894483,1760202640175,-210.36258489,0.00014999,2]
[390894484,1760202640184,-589.46604481,0.00014999,2]
[390894485,1760202640193,-500.0,0.00014999,2]
[390894486,1760202640202,-178.92588708,0.00014999,2]
[390894487,1760202640212,-500.0,0.00014999,2]
[390894488,1760202640221,-627.38110886,0.00014999,2]
[390894489,1760202640231,-500.0,0.00014999,2]
[390894490,1760202640241,-194.93078842,0.00014999,2]
[390894491,1760202640252,-200.45716463,0.00014999,2]
[390894493,1760202640262,-150.0,0.00014999,2]
[390894495,1760202640271,-1016624.16848533,0.00015,2]
[390894500,1760202640306,-50334.12546131,0.00015,2]
[390894502,1760202640318,-29120.80847923,0.00015,2]
[390894506,1760202640340,-24788.20144793,0.00015,2]
[390894821,1760202643373,-172.39069942,0.00013712,2]
[390894823,1760202643389,-857.62328558,0.00015,2]
[390894827,1760202643418,-177077.13574057,0.00015,2]
[390895039,1760202645934,-12776.0895639,0.00015,2]
[390895046,1760202645991,-16890.29264546,0.00015,2]
[390895049,1760202646006,-4491.3648,0.00015,2]
[390895055,1760202646052,-523.76962602,0.00015,2]
[390895061,1760202646107,-12120.0,0.00015,2]
[390895223,1760203167925,-10100100.0,0.00029336,30]
[390895224,1760203171900,-10100100.0,0.00029336,30]
[390895225,1760203178058,-10100103.0,0.00029336,30]
[390895227,1760203183104,-10100101.0,0.00029336,30]
[390895228,1760203185673,-1140369.16436475,0.00029336,30]
[390895229,1760203185699,-153.68422781,0.00029336,120]
[390895230,1760203185724,-321489.87014738,0.00029336,120]
[390895231,1760203185748,-12323.0,0.00029336,30]
[390895232,1760203185772,-10275.51127704,0.00029336,30]
[390895233,1760203185796,-160000.0,0.00029336,120]
[390895234,1760203185821,-20000.0,0.00029336,120]
[390895235,1760203185846,-200.78960391,0.00029336,120]
[390895236,1760203185870,-166.07784521,0.00029336,120]
[390895237,1760203185895,-274250.4502,0.00029336,30]
[390895238,1760203185920,-2000.0,0.00029336,120]
[390895239,1760203185944,-2000.0,0.00029336,120]
[390895240,1760203185968,-2000.0,0.00029336,120]
[390895241,1760203185992,-2000.0,0.00029336,120]
[390895242,1760203186018,-2000.0,0.00029336,120]
[390895243,1760203186042,-2000.0,0.00029336,120]
[390895244,1760203186074,-2000.0,0.00029336,120]
[390895245,1760203186100,-2000.0,0.00029336,120]
[390895246,1760203186131,-2000.0,0.00029336,120]
[390895247,1760203186156,-2000.0,0.00029336,120]
[390895248,1760203186182,-2000.0,0.00029336,120]
[390895249,1760203186208,-2000.0,0.00029336,120]
[390895250,1760203186238,-1850.17535778,0.00029336,120]
[390895251,1760203186264,-214.3,0.00029336,30]
[390895252,1760203186290,-1000.0,0.00029336,30]
[390895253,1760203186317,-50000.0,0.00029336,30]
[390895254,1760203186344,-50000.0,0.00029336,31]
[390895255,1760203186372,-50000.0,0.00029336,32]
[390895256,1760203186398,-50000.0,0.00029336,33]
[390895257,1760203186424,-50000.0,0.00029336,34]
[390895258,1760203186451,-50000.0,0.00029336,35]
[390895259,1760203186478,-50000.0,0.00029336,36]
[390895260,1760203186507,-50000.0,0.00029336,37]
[390895261,1760203186535,-50000.0,0.00029336,38]
[390895262,1760203186562,-50000.0,0.00029336,39]
[390895263,1760203186593,-3000.0,0.00029336,120]
[390895264,1760203186620,-200.0,0.00029336,120]
[390895265,1760203186645,-169.1,0.00029336,30]
[390895266,1760203186672,-200000.0,0.00029336,120]
[390895267,1760203186699,-200000.0,0.00029336,120]
[390895268,1760203186725,-200000.0,0.00029336,120]
[390895269,1760203186752,-200000.0,0.00029336,120]
[390895270,1760203186778,-200000.0,0.00029336,120]
[390895271,1760203186805,-200000.0,0.00029336,120]
[390895272,1760203192458,200000.0,0.00029336,120]
[390895273,1760203200880,200000.0,0.00029336,120]
[390895275,1760203212117,200000.0,0.00029336,120]
[390895276,1760203214161,50000.0,0.00029336,120]
[390895277,1760203221130,200000.0,0.00029336,120]
[390895287,1760203230173,-678.14,0.000242,30]
[390895288,1760203230219,-1739.95,0.00024685,30]
[390895289,1760203230278,-1082.31,0.00026,30]
[390895290,1760203230313,-1082.31,0.000265,30]
[390895291,1760203230354,-1082.31,0.00027,30]
[390895292,1760203230399,-1082.31,0.000275,30]
[390895293,1760203230438,-1082.31,0.00028,30]
[390895294,1760203230473,-151.0,0.0002844,30]
[390895295,1760203230505,-156.120618,0.0002844,30]
[390895296,1760203230536,-202.26907,0.0002844,30]
[390895297,1760203230568,-202.26907,0.0002844,30]
[390895298,1760203230600,-202.26907,0.0002844,30]
[390895299,1760203230631,-202.26907,0.0002844,30]
[390895300,1760203230664,-213.402574,0.0002844,30]
[390895301,1760203230696,-213.402574,0.0002844,30]
[390895302,1760203230729,-213.402574,0.0002844,30]
[390895303,1760203230760,-213.402574,0.0002844,30]
[390895304,1760203230791,-207.653294,0.0002844,30]
[390895305,1760203230824,-207.653294,0.0002844,30]
[390895306,1760203230854,-207.653294,0.0002844,30]
[390895307,1760203230885,-207.653294,0.0002844,30]
[390895308,1760203230917,-972.77,0.00028474,30]
[390895309,1760203230951,-1082.31,0.000285,30]
[390895310,1760203230985,-151.0,0.000286,30]
[390895311,1760203231016,-151.0,0.000286,30]
[390895312,1760203231049,-151.0,0.000286,30]
[390895313,1760203231080,-151.0,0.000286,30]